fUSD/lending_fUSD_20240217
["ID","MTS","AMOUNT","RATE_DAILY","PERIOD"]
[314306767,1708169450639,-500.0,0.00054794,120]
[314306768,1708169450650,-534.69231567,0.00054794,120]
[314306769,1708169450747,-557.08115132,0.00054794,120]
[314306770,1708169450757,-522.18703012,0.00054794,120]
[314306771,1708169450766,-500.0,0.00054794,120]
[314306772,1708169450776,-500.0,0.00054794,120]
[314306773,1708169450785,-500.0,0.00054794,120]
[314306774,1708169450794,-500.0,0.00054794,120]
[314306775,1708169450803,-500.0,0.00054794,120]
[314306776,1708169450812,-525.54881652,0.00054794,120]
[314306777,1708169450821,-500.0,0.00054794,30]
[314306778,1708169450831,-1241.82,0.00054794,120]
[314306779,1708169450840,-500.0,0.00054794,120]
[314306780,1708169450849,-500.0,0.00054794,120]
[314306781,1708169450858,-590.34257876,0.00054794,120]
[314306782,1708169450868,-535.95951786,0.00054794,120]
[314306783,1708169450877,-500.0,0.00054794,120]
[314306784,1708169450886,-500.0,0.00054794,2]
[314306785,1708169450896,-500.0,0.00054794,120]
[314306786,1708169450905,-500.0,0.00054794,120]
[314306787,1708169450914,-500.0,0.00054794,120]
[314306788,1708169450923,-500.0,0.00054794,120]
[314306789,1708169450933,-547.12,0.00054794,120]
[314306790,1708169450943,-519.17862808,0.00054794,120]
[314306791,1708169450952,-500.0,0.00054794,120]
[314306792,1708169450961,-500.0,0.00054794,120]
[314306793,1708169450970,-4022.57,0.00054794,120]
[314306794,1708169450979,-507.45173941,0.00054794,120]
[314306795,1708169450989,-572.06826694,0.00054794,120]
[314306796,1708169450998,-500.0,0.00054794,120]
[314306797,1708169451008,-500.0,0.00054794,120]
[314306798,1708169451017,-500.0,0.00054794,120]
[314306799,1708169451026,-532.02999864,0.00054794,120]
[314306800,1708169451036,-512.21867618,0.00054794,120]
[314306801,1708169451045,-509.19477868,0.00054794,120]
[314306802,1708169451054,-500.0,0.00054794,120]
[314306803,1708169451064,-500.0,0.00054794,120]
[314306804,1708169451074,-500.0,0.00054794,120]
[314306805,1708169451083,-512.33358062,0.00054794,120]
[314306806,1708169451093,-500.0,0.00054794,120]
[314306807,1708169451103,-500.0,0.00054794,120]
[314306808,1708169451112,-500.0,0.00054794,120]
[314306809,1708169451122,-500.0,0.00054794,120]
[314306810,1708169451132,-500.0,0.00054794,120]
[314306811,1708169451141,-609.54,0.00054794,120]
[314306812,1708169451150,-500.0,0.00054794,120]
[314306813,1708169451160,-500.0,0.00054794,120]
[314306814,1708169451171,-528.6082629,0.00054794,120]
[314306815,1708169451181,-500.0,0.00054794,120]
[314306816,1708169451190,-500.0,0.00054794,120]
[314306817,1708169451201,-472.38564511,0.00054794,120]
[314306818,1708169451211,-527.55136183,0.00054794,120]
[314306819,1708169451220,-500.0,0.00054794,120]
[314306820,1708169451230,-526.06285506,0.00054794,120]
[314306821,1708169451239,-500.0,0.00054794,120]
[314306822,1708169451249,-509.84399914,0.00054794,120]
[314306823,1708169451258,-500.0,0.00054794,120]
[314306824,1708169451268,-500.0,0.00054794,120]
[314306825,1708169451277,-578.31940821,0.00054794,120]
[314306826,1708169451288,-500.0,0.00054794,120]
[314306827,1708169451298,-507.99460736,0.00054794,7]
[314306828,1708169451308,-500.0,0.00054794,120]
[314306829,1708169451317,-500.0,0.00054794,120]
[314306830,1708169451327,-196.65743216,0.00054794,120]
[314306831,1708169451336,-500.0,0.00054794,120]
[314306832,1708169451345,-537.13615495,0.00054794,120]
[314306833,1708169451355,-500.0,0.00054794,120]
[314306834,1708169451365,-518.61050765,0.00054794,120]
[314306835,1708169451374,-509.36270005,0.00054794,120]
[314306836,1708169451383,-500.0,0.00054794,120]
[314306837,1708169451393,-500.0,0.00054794,120]
[314306838,1708169451402,-865.57,0.00054794,120]
[314306839,1708169451411,-1000.0,0.00054794,7]
[314306840,1708169451421,-502.71281984,0.00054794,60]
[314306841,1708169451431,-632.05038922,0.00054794,120]
[314306842,1708169451441,-739.98,0.00054794,120]
[314306843,1708169451450,-517.69436096,0.00054794,120]
[314306844,1708169451460,-296.90117551,0.00054794,120]
[314306845,1708169451469,-538.82814425,0.00054794,120]
[314306846,1708169451478,-500.0,0.00054794,120]
[314306847,1708169451487,-500.0,0.00054794,120]
[314306848,1708169451496,-507.75064367,0.00054794,120]
[314306849,1708169451505,-500.0,0.00054794,120]
[314306850,1708169451514,-500.0,0.00054794,120]
[314306851,1708169451524,-510.70103441,0.00054794,120]
[314306852,1708169451533,-500.0,0.00054794,120]
[314306853,1708169451542,-317.36512283,0.00054794,120]
[314306854,1708169451551,-500.0,0.00054794,120]
[314306855,1708169451560,-510.55731729,0.00054794,120]
[314306856,1708169451570,-500.0,0.00054794,120]
[314306857,1708169451578,-500.0,0.00054794,120]
[314306858,1708169451588,-500.0,0.00054794,120]
[314306859,1708169451597,-500.0,0.00054794,120]
[314306860,1708169451606,-563.35992792,0.00054794,120]
[314306861,1708169451615,-500.0,0.00054794,120]
[314306862,1708169451624,-500.0,0.00054794,120]
[314306863,1708169451633,-500.0,0.00054794,120]
[314306864,1708169451643,-704.79,0.00054794,120]
[314306865,1708169451652,-6527.46,0.00054794,120]
[314306866,1708169451661,-743.57,0.00054794,120]
[314306867,1708169451671,-400.0,0.00054794,120]
[314306868,1708169451680,-503.16608839,0.00054794,120]
[314306869,1708169451689,-507.06467811,0.00054794,120]
[314306870,1708169451699,-500.0,0.00054794,120]
[314306871,1708169451708,-758.94,0.00054794,120]
[314306872,1708169451718,-500.0,0.00054794,120]
[314306873,1708169451727,-500.0,0.00054794,120]
[314306874,1708169451737,-500.0,0.00054794,120]
[314306875,1708169451746,-500.0,0.00054794,120]
[314306876,1708169451755,-1468.8,0.00054794,120]
[314306877,1708169451765,-524.56234278,0.00054794,120]
[314306878,1708169451774,-500.0,0.00054794,120]
[314306879,1708169451784,-500.0,0.00054794,120]
[314306880,1708169451793,-589.7800519,0.00054794,120]
[314306881,1708169451802,-500.0,0.00054794,120]
[314306882,1708169451812,-533.33566868,0.00054794,60]
[314306883,1708169451821,-500.0,0.00054794,120]
[314306884,1708169451830,-500.0,0.00054794,120]
[314306885,1708169451839,-536.73753223,0.00054794,120]
[314306886,1708169451848,-526.88269102,0.00054794,14]
[314306887,1708169451857,-500.0,0.00054794,120]
[314306888,1708169451866,-500.0,0.00054794,120]
[314306889,1708169451875,-500.0,0.00054794,120]
[314306890,1708169451884,-500.0,0.00054794,120]
[314306891,1708169451893,-553.30299236,0.00054794,120]
[314306892,1708169451902,-500.0,0.00054794,120]
[314306893,1708169451911,-240.20627516,0.00054794,120]
[314306894,1708169451920,-500.0,0.00054794,120]
[314306895,1708169451929,-500.0,0.00054794,120]
[314306896,1708169451938,-3438.58,0.00054794,120]
[314306897,1708169451947,-500.0,0.00054794,120]
[314306898,1708169451956,-500.0,0.00054794,120]
[314306899,1708169451966,-559.74751629,0.00054794,120]
[314306900,1708169451975,-500.0,0.00054794,120]
[314306901,1708169451984,-500.0,0.00054794,120]
[314306902,1708169451993,-500.0,0.00054794,120]
[314306903,1708169452002,-500.0,0.00054794,120]
[314306904,1708169452011,-1279.83,0.00054794,120]
[314306905,1708169452020,-500.0,0.00054794,120]
[314306906,1708169452029,-555.49827714,0.00054794,120]
[314306907,1708169452038,-500.0,0.00054794,120]
[314306908,1708169452047,-582.72,0.00054794,120]
[314306909,1708169452056,-500.0,0.00054794,120]
[314306910,1708169452065,-546.24327557,0.00054794,120]
[314306911,1708169452074,-500.0,0.00054794,120]
[314306912,1708169452083,-502.21977717,0.00054794,2]
[314306913,1708169452092,-500.0,0.00054794,120]
[314306914,1708169452101,-494.77414686,0.00054794,120]
[314306915,1708169452110,-543.960623,0.00054794,120]
[314306916,1708169452119,-500.0,0.00054794,120]
[314306917,1708169452128,-500.0,0.00054794,120]
[314306918,1708169452137,-506.4659255,0.00054794,120]
[314306919,1708169452146,-500.0,0.00054794,120]
[314306920,1708169452156,-500.0,0.00054794,120]
[314306921,1708169452165,-500.0,0.00054794,120]
[314306922,1708169452174,-500.0,0.00054794,120]
[314306923,1708169452183,-500.0,0.00054794,120]
[314306924,1708169452193,-500.0,0.00054794,120]
[314306925,1708169452204,-500.0,0.00054794,120]
[314306926,1708169452214,-500.0,0.00054794,120]
[314306927,1708169452223,-523.44883114,0.00054794,120]
[314306928,1708169452232,-500.0,0.00054794,120]
[314306929,1708169452242,-500.0,0.00054794,120]
[314306930,1708169452251,-500.0,0.00054794,120]
[314306931,1708169452261,-489.67943093,0.00054794,120]
[314306932,1708169452270,-517.69882726,0.00054794,120]
[314306933,1708169452279,-500.0,0.00054794,120]
[314306934,1708169452369,-504.72631277,0.00054794,5]
[314306935,1708169452378,-500.0,0.00054794,120]
[314306936,1708169452387,-500.0,0.00054794,120]
[314306937,1708169452397,-341.19224171,0.00054794,120]
[314306938,1708169452406,-488.83146558,0.00054794,120]
[314306939,1708169452415,-500.0,0.00054794,120]
[314306940,1708169452426,-500.0,0.00054794,120]
[314306941,1708169452436,-500.0,0.00054794,120]
[314306942,1708169452445,-500.0,0.00054794,120]
[314306943,1708169452454,-500.0,0.00054794,120]
[314306944,1708169452463,-500.0,0.00054794,120]
[314306945,1708169452472,-500.0,0.00054794,120]
[314306946,1708169452481,-405.46857021,0.00054794,120]
[314306947,1708169452490,-500.0,0.00054794,120]
[314306948,1708169452499,-500.0,0.00054794,120]
[314306949,1708169452508,-500.0,0.00054794,120]
[314306950,1708169452517,-461.21660472,0.00054794,120]
[314306951,1708169452527,-500.0,0.00054794,120]
[314306952,1708169452536,-500.0,0.00054794,120]
[314306953,1708169452545,-769.19,0.00054794,120]
[314306954,1708169452554,-500.0,0.00054794,120]
[314306955,1708169452564,-4337.99,0.00054794,120]
[314306956,1708169452572,-500.0,0.00054794,120]
[314306957,1708169452582,-500.0,0.00054794,120]
[314306958,1708169452591,-500.0,0.00054794,120]
[314306959,1708169452600,-538.68199028,0.00054794,120]
[314306960,1708169452609,-521.32413856,0.00054794,120]
[314306961,1708169452618,-500.0,0.00054794,120]
[314306962,1708169452627,-500.0,0.00054794,120]
[314306963,1708169452636,-16672.61,0.00054794,120]
[314306964,1708169452645,-500.0,0.00054794,120]
[314306965,1708169452655,-500.0,0.00054794,120]
[314306966,1708169452665,-500.0,0.00054794,120]
[314306967,1708169452674,-500.0,0.00054794,120]
[314306968,1708169452683,-500.0,0.00054794,14]
[314306969,1708169452693,-500.0,0.00054794,120]
[314306970,1708169452703,-508.57077032,0.00054794,120]
[314306971,1708169452712,-500.0,0.00054794,120]
[314306972,1708169452721,-4548.64,0.00054794,120]
[314306973,1708169452731,-500.0,0.00054794,120]
[314306974,1708169452740,-500.0,0.00054794,120]
[314306975,1708169452749,-545.87976051,0.00054794,120]
[314306976,1708169452758,-464.64071643,0.00054794,2]
[314306977,1708169452767,-500.0,0.00054794,120]
[314306978,1708169452776,-500.0,0.00054794,120]
[314306979,1708169452784,-568.12,0.00054794,120]
[314306980,1708169452793,-561.12639382,0.00054794,120]
[314306981,1708169452803,-500.0,0.00054794,120]
[314306982,1708169452811,-545.28716769,0.00054794,120]
[314306983,1708169452820,-501.63413972,0.00054794,2]
[314306984,1708169452829,-500.0,0.00054794,120]
[314306985,1708169452838,-500.0,0.00054794,120]
[314306986,1708169452846,-500.0,0.00054794,120]
[314306987,1708169452855,-500.0,0.00054794,120]
[314306988,1708169452864,-500.0,0.00054794,120]
[314306989,1708169452873,-578.43,0.00054794,120]
[314306990,1708169452882,-540.68488322,0.00054794,120]
[314306991,1708169452891,-500.0,0.00054794,120]
[314306992,1708169452900,-500.0,0.00054794,2]
[314306993,1708169452909,-500.0,0.00054794,120]
[314306994,1708169452919,-500.0,0.00054794,120]
[314306995,1708169452928,-550.43784507,0.00054794,120]
[314306996,1708169452937,-549.95997327,0.00054794,120]
[314306997,1708169452946,-508.87243371,0.00054794,120]
[314306998,1708169452955,-500.0,0.00054794,120]
[314306999,1708169452965,-300.95615346,0.00054794,120]
[314307000,1708169452974,-500.0,0.00054794,2]
[314307001,1708169452983,-500.0,0.00054794,120]
[314307002,1708169452993,-524.39353,0.00054794,120]
[314307003,1708169453002,-800.0,0.00054795,120]
[314307004,1708169453011,-200.0,0.00054795,30]
[314307005,1708169453020,-200.0,0.00054795,30]
[314307006,1708169453029,-200.0,0.00054795,30]
[314307007,1708169453038,-500.0,0.00054795,120]
[314307008,1708169453047,-151.0,0.00054795,120]
[314307009,1708169453056,-151.0,0.00054795,120]
[314307010,1708169453065,-151.0,0.00054795,30]
[314307011,1708169453074,-151.0,0.00054795,30]
[314307012,1708169453083,-151.0,0.00054795,120]
[314307013,1708169453092,-151.0,0.00054795,120]
[314307014,1708169453101,-151.0,0.00054795,120]
[314307015,1708169453110,-151.0,0.00054795,120]
[314307016,1708169453120,-151.0,0.00054795,120]
[314307017,1708169453129,-151.0,0.00054795,120]
[314307018,1708169453138,-2400.0,0.00054795,30]
[314307019,1708169453147,-161.03,0.00054795,30]
[314307020,1708169453156,-151.0,0.00054795,120]
[314307021,1708169453165,-151.0,0.00054795,120]
[314307022,1708169453174,-151.0,0.00054795,120]
[314307023,1708169453183,-151.0,0.00054795,120]
[314307024,1708169453193,-265.684355,0.00054795,120]
[314307025,1708169453203,-151.0,0.00054795,120]
[314307026,1708169453212,-151.0,0.00054795,120]
[314307027,1708169453221,-151.0,0.00054795,120]
[314307028,1708169453231,-151.0,0.00054795,120]
[314307029,1708169453241,-151.0,0.00054795,120]
[314307030,1708169453251,-151.0,0.00054795,120]
[314307031,1708169453260,-151.0,0.00054795,120]
[314307032,1708169453269,-151.0,0.00054795,120]
[314307033,1708169453279,-151.0,0.00054795,120]
[314307034,1708169453289,-151.0,0.00054795,120]
[314307035,1708169453298,-151.0,0.00054795,120]
[314307036,1708169453307,-151.0,0.00054795,120]
[314307037,1708169453316,-151.0,0.00054795,120]
[314307038,1708169453326,-619.439056,0.00054795,14]
[314307039,1708169453335,-619.439056,0.00054795,14]
[314307040,1708169453344,-619.439056,0.00054795,14]
[314307041,1708169453353,-619.439056,0.00054795,14]
[314307042,1708169453362,-619.439056,0.00054795,14]
[314307043,1708169453371,-619.439056,0.00054795,14]
[314307044,1708169453380,-151.0,0.00054795,120]
[314307045,1708169453389,-151.0,0.00054795,120]
[314307046,1708169453399,-151.0,0.00054795,120]
[314307047,1708169453407,-151.0,0.00054795,120]
[314307048,1708169453417,-151.0,0.00054795,120]
[314307049,1708169453427,-151.0,0.00054795,120]
[314307050,1708169453437,-151.0,0.00054795,2]
[314307051,1708169453446,-151.0,0.00054795,2]
[314307052,1708169453455,-151.0,0.00054795,2]
[314307053,1708169453465,-151.0,0.00054795,120]
[314307054,1708169453474,-151.0,0.00054795,120]
[314307055,1708169453483,-151.0,0.00054795,120]
[314307056,1708169453492,-500.0,0.00054795,120]
[314307057,1708169453500,-1500.0,0.00054795,14]
[314307058,1708169453510,-150.0,0.00054798,14]
[314307059,1708169453520,-351.61440832,0.00054799,14]
[314307060,1708169453529,-200.0,0.000548,120]
[314307061,1708169453538,-800.0,0.000548,60]
[314307062,1708169453547,-5000.0,0.000548,120]
[314307063,1708169453556,-1465.0,0.000548,30]
[314307064,1708169453565,-1505.0,0.000548,30]
[314307065,1708169453575,-1500.0,0.00054805,14]
[314307066,1708169453584,-150.0,0.00054814,14]
[314307067,1708169453593,-150.0,0.0005482,14]
[314307068,1708169453602,-150.0,0.00054827,14]
[314307069,1708169453611,-150.0,0.00054838,14]
[314307070,1708169453621,-150.0,0.00054846,14]
[314307071,1708169453630,-150.0,0.00054862,14]
[314307072,1708169453639,-150.0,0.0005487,30]
[314307073,1708169453648,-1500.0,0.00054886,14]
[314307074,1708169453658,-500.0,0.000549,120]
[314307075,1708169453666,-181.45034987,0.00054903,60]
[314307076,1708169453676,-150.0,0.00054919,14]
[314307077,1708169453685,-1500.0,0.00054925,14]
[314307078,1708169453695,-150.0,0.00054925,14]
[314307079,1708169453704,-150.0,0.00054929,14]
[314307080,1708169453713,-150.0,0.00054952,14]
[314307081,1708169453722,-150.0,0.00054964,14]
[314307082,1708169453731,-150.0,0.00054977,14]
[314307083,1708169453740,-724268.13552358,0.0005498,30]
[314307084,1708169454038,-127059.19291452,0.0005498,30]
[314307085,1708169454047,-151.0,0.0005498,120]
[314307086,1708169454057,-1500.0,0.00054981,14]
[314307087,1708169454066,-370.0,0.00054982,30]
[314307088,1708169454075,-150.0,0.00054986,14]
[314307089,1708169454084,-200.0,0.00054987,90]
[314307090,1708169454094,-200.0,0.00054987,89]
[314307091,1708169454103,-100000.0,0.00055,55]
[314307092,1708169454112,-194.33980856,0.00055,120]
[314307093,1708169454121,-150.0,0.00055,2]
[314307094,1708169454130,-207.0,0.00055,11]
[314307095,1708169454139,-387.94568805,0.00055,50]
[314307096,1708169454148,-7665.0,0.00055,60]
[314307097,1708169454157,-300.0,0.00055,55]
[314307098,1708169454167,-1000.0,0.00055,15]
[314307099,1708169454176,-12764.43489373,0.00055,30]
[314307100,1708169454185,-2514.0,0.00055,120]
[314307101,1708169454195,-2553.0,0.00055,60]
[314307102,1708169454207,-25000.0,0.00055,10]
[314307103,1708169454216,-5000.0,0.00055,60]
[314307104,1708169454226,-10000.0,0.00055,60]
[314307105,1708169454235,-151.0,0.00055,120]
[314307106,1708169454245,-151.0,0.00055,30]
[314307107,1708169454254,-999.9999991,0.00055,15]
[314307108,1708169454263,-151.0,0.00055,120]
[314307109,1708169454272,-151.0,0.00055,120]
[314307110,1708169454282,-160.0,0.00055,120]
[314307111,1708169454291,-5000.0,0.00055,20]
[314307112,1708169454300,-151.0,0.00055,120]
[314307113,1708169454309,-164.820398,0.00055,120]
[314307114,1708169454318,-619.439056,0.00055,14]
[314307115,1708169454328,-619.439056,0.00055,14]
[314307116,1708169454337,-300.32,0.00055,2]
[314307117,1708169454347,-151.0,0.00055,120]
[314307118,1708169454356,-151.0,0.00055,120]
[314307119,1708169454365,-2348.0,0.00055,30]
[314307120,1708169454374,-151.595367,0.00055,2]
[314307121,1708169454384,-151.0,0.00055,120]
[314307122,1708169454393,-15732.97496596,0.00055,120]
[314307123,1708169454402,-150.0,0.00055004,14]
[314307124,1708169454411,-500.0,0.00055005,120]
[314307125,1708169454420,-160.0,0.00055014,120]
[314307126,1708169454430,-150.0,0.00055029,14]
[314307127,1708169454439,-150.0,0.00055029,14]
[314307128,1708169454448,-150.0,0.00055036,14]
[314307129,1708169454457,-150.0,0.00055041,14]
[314307130,1708169454466,-150.0,0.00055042,14]
[314307131,1708169454475,-152.0,0.00055047,120]
[314307132,1708169454484,-150.0,0.00055048,14]
[314307133,1708169454493,-150.0,0.00055049,14]
[314307134,1708169454503,-150.0,0.00055051,14]
[314307135,1708169454521,-150.0,0.00055055,14]
[314307136,1708169454530,-10000.0,0.0005506,120]
[314307137,1708169454539,-300.0,0.0005506,14]
[314307138,1708169454549,-1500.0,0.00055064,14]
[314307139,1708169454558,-500.0,0.00055068,120]
[314307140,1708169454567,-633.78,0.00055068,2]
[314307141,1708169454576,-500.0,0.00055068,120]
[314307142,1708169454585,-208.39091494,0.00055068,120]
[314307143,1708169454594,-500.0,0.00055068,120]
[314307144,1708169454603,-500.0,0.00055068,120]
[314307145,1708169454612,-457.82979112,0.00055068,120]
[314307146,1708169454621,-486.99638764,0.00055068,120]
[314307147,1708169454630,-500.0,0.00055068,120]
[314307148,1708169454639,-205.96772206,0.00055068,120]
[314307149,1708169454648,-234.78,0.00055068,120]
[314307150,1708169454657,-530.98169787,0.00055068,7]
[314307151,1708169454666,-418.58613621,0.00055068,120]
[314307152,1708169454675,-500.0,0.00055068,120]
[314307153,1708169454684,-392.36,0.00055068,120]
[314307154,1708169454693,-452.52043087,0.00055068,120]
[314307155,1708169454702,-500.0,0.00055068,120]
[314307156,1708169454712,-500.0,0.00055068,120]
[314307157,1708169454722,-500.0,0.00055068,120]
[314307158,1708169454731,-500.0,0.00055068,120]
[314307159,1708169454740,-339.23976603,0.00055068,120]
[314307160,1708169454749,-500.0,0.00055068,2]
[314307161,1708169454758,-500.0,0.00055068,120]
[314307162,1708169454767,-500.0,0.00055068,120]
[314307163,1708169454777,-500.0,0.00055068,120]
[314307164,1708169454786,-251.52956896,0.00055068,120]
[314307165,1708169454795,-259.32527381,0.00055068,120]
[314307166,1708169454804,-500.0,0.00055068,120]
[314307167,1708169454813,-500.0,0.00055068,120]
[314307168,1708169454822,-345.57938761,0.00055068,120]
[314307169,1708169454832,-500.0,0.00055068,120]
[314307170,1708169454841,-581.63109471,0.00055068,120]
[314307171,1708169454850,-186.82793851,0.00055068,120]
[314307172,1708169454859,-500.0,0.00055068,120]
[314307173,1708169454868,-500.0,0.00055068,120]
[314307174,1708169454877,-622.12543394,0.00055068,120]
[314307175,1708169454887,-500.0,0.00055068,120]
[314307176,1708169454896,-500.0,0.00055068,120]
[314307177,1708169454905,-537.0052158,0.00055068,120]
[314307178,1708169454914,-552.80298346,0.00055068,120]
[314307179,1708169454924,-541.85888393,0.00055068,120]
[314307180,1708169454933,-500.0,0.00055068,120]
[314307181,1708169454942,-500.0,0.00055068,120]
[314307182,1708169454950,-500.0,0.00055068,120]
[314307183,1708169454959,-500.0,0.00055068,120]
[314307184,1708169454968,-500.0,0.00055068,120]
[314307185,1708169454976,-500.0,0.00055068,120]
[314307186,1708169454985,-500.0,0.00055068,2]
[314307187,1708169454994,-308.59535877,0.00055068,120]
[314307188,1708169455003,-500.0,0.00055068,120]
[314307189,1708169455012,-500.0,0.00055068,120]
[314307190,1708169455021,-500.0,0.00055068,120]
[314307191,1708169455030,-500.0,0.00055068,120]
[314307192,1708169455039,-500.0,0.00055068,120]
[314307193,1708169455145,-297.25573391,0.00055068,120]
[314307194,1708169455156,-500.0,0.00055068,120]
[314307195,1708169455166,-500.0,0.00055068,2]
[314307196,1708169455178,-500.0,0.00055068,7]
[314307197,1708169455187,-500.0,0.00055068,120]
[314307198,1708169455197,-500.0,0.00055068,120]
[314307199,1708169455209,-500.0,0.00055068,120]
[314307200,1708169455219,-500.0,0.00055068,120]
[314307201,1708169455228,-177.36010307,0.00055068,120]
[314307202,1708169455238,-500.0,0.00055068,120]
[314307203,1708169455247,-500.0,0.00055068,120]
[314307204,1708169455257,-327.26751175,0.00055068,120]
[314307205,1708169455266,-500.0,0.00055068,2]
[314307206,1708169455276,-500.0,0.00055068,120]
[314307207,1708169455286,-500.0,0.00055068,120]
[314307208,1708169455295,-593.63218861,0.00055068,120]
[314307209,1708169455305,-500.0,0.00055068,120]
[314307210,1708169455314,-313.49798344,0.00055068,120]
[314307211,1708169455324,-500.0,0.00055068,120]
[314307212,1708169455333,-500.0,0.00055068,120]
[314307213,1708169455342,-500.0,0.00055068,120]
[314307214,1708169455353,-500.0,0.00055068,120]
[314307215,1708169455362,-500.0,0.00055068,120]
[314307216,1708169455372,-500.0,0.00055068,120]
[314307217,1708169455381,-500.0,0.00055068,120]
[314307218,1708169455390,-500.0,0.00055068,120]
[314307219,1708169455399,-500.0,0.00055068,120]
[314307220,1708169455408,-500.0,0.00055068,120]
[314307221,1708169455418,-1000.0,0.00055068,120]
[314307222,1708169455427,-500.0,0.00055068,120]
[314307223,1708169455437,-500.0,0.00055068,120]
[314307224,1708169455446,-227.33699963,0.00055068,120]
[314307225,1708169455456,-500.0,0.00055068,120]
[314307226,1708169455465,-500.0,0.00055068,120]
[314307227,1708169455474,-500.0,0.00055068,120]
[314307228,1708169455483,-500.0,0.00055068,120]
[314307229,1708169455492,-519.69891865,0.00055068,7]
[314307230,1708169455501,-500.0,0.00055068,120]
[314307231,1708169455510,-424.19534597,0.00055068,120]
[314307232,1708169455519,-500.0,0.00055068,120]
[314307233,1708169455528,-500.0,0.00055068,120]
[314307234,1708169455537,-500.0,0.00055068,120]
[314307235,1708169455546,-412.08901034,0.00055068,120]
[314307236,1708169455554,-501.21987151,0.00055068,7]
[314307237,1708169455564,-580.82076152,0.00055068,120]
[314307238,1708169455573,-568.11386735,0.00055068,120]
[314307239,1708169455582,-500.0,0.00055068,120]
[314307240,1708169455591,-500.0,0.00055068,120]
[314307241,1708169455599,-501.61823488,0.00055068,120]
[314307242,1708169455609,-150.0,0.00055068,120]
[314307243,1708169455618,-500.0,0.00055068,120]
[314307244,1708169455627,-500.0,0.00055068,120]
[314307245,1708169455636,-569.12898609,0.00055068,120]
[314307246,1708169455645,-511.99391969,0.00055068,120]
[314307247,1708169455654,-521.3641745,0.00055068,120]
[314307248,1708169455663,-500.0,0.00055068,120]
[314307249,1708169455674,-524.88,0.00055068,120]
[314307250,1708169455683,-512.15,0.00055068,120]
[314307251,1708169455692,-553.06947301,0.00055068,120]
[314307252,1708169455701,-744.32,0.00055068,120]
[314307253,1708169455711,-500.0,0.00055068,120]
[314307254,1708169455720,-642.69094484,0.00055068,120]
[314307255,1708169455729,-500.0,0.00055068,120]
[314307256,1708169455738,-500.0,0.00055068,120]
[314307257,1708169455747,-500.0,0.00055068,120]
[314307258,1708169455756,-500.0,0.00055068,120]
[314307259,1708169455765,-500.0,0.00055068,120]
[314307260,1708169455775,-500.0,0.00055068,120]
[314307261,1708169455783,-500.0,0.00055068,120]
[314307262,1708169455792,-500.0,0.00055068,120]
[314307263,1708169455802,-500.0,0.00055068,120]
[314307264,1708169455811,-500.0,0.00055068,2]
[314307265,1708169455821,-500.0,0.00055068,120]
[314307266,1708169455830,-500.0,0.00055068,120]